[Event "1000GM NY Winter IM-C 2024"]
[Site "New York"]
[Date "2024.01.15"]
[Round "7.4"]
[White "Kovalchuk, Igor"]
[Black "Ho, Carter"]
[Result "1-0"]
[ECO "B45"]
[WhiteElo "2030"]
[BlackElo "2180"]
[Annotator "RC"]
[PlyCount "105"]
[EventDate "2024.01.10"]
[EventType "swiss"]
[EventCountry "USA"]
[SourceTitle "playchess.com"]
[Source "ChessBase"]
[SourceQuality "1"]
[TimeControl "5400+30"]

1. e4 {[%emt 0:00:34]} c5 {[%emt 0:01:36]} 2. Nc3 {[%emt 0:00:07]} Nc6 {[%emt 0:00:08]} 3. Nf3 {[%emt 0:00:08]} e6 {[%emt 0:00:12]} 4. d4 {[%emt 0:00:08]} cxd4 {[%emt 0:00:05]} 5. Nxd4 {[%emt 0:00:06]} Nf6 {[%emt 0:00:03]} 6. Nxc6 {[%emt 0:07:55]} bxc6 {[%emt 0:00:17]} 7. e5 {[%emt 0:00:07]} Nd5 {[%emt 0:00:03]} 8. Ne4 {[%emt 0:00:06]} Qc7 {[%emt 0:00:12]} 9. f4 {[%emt 0:00:42]} Rb8 {[%emt 0:00:40]} 10. c3 {[%emt 0:07:02]} f5 {[%emt 0:18:03]} 11. exf6 {[%emt 0:05:19]} Nxf6 {[%emt 0:00:07]} 12. Nxf6+ {[%emt 0:00:30]} gxf6 {[%emt 0:00:08]} 13. Qh5+ {[%emt 0:00:22]} Kd8 {[%emt 0:00:11]} 14. Qh4 {[%emt 0:01:05]} Be7 {[%emt 0:00:37]} 15. Qg3 {[%emt 0:03:00]} d5 {[%emt 0:10:12]} 16. Qg7 {[%emt 0:02:29]} Re8 {[%emt 0:02:51]} 17. Be2 {[%emt 0:05:32]} e5 {[%emt 0:00:39]} 18. Rf1 {[%emt 0:01:14]} Rb4 {[%emt 0:18:31]} 19. Kd1 {[%emt 0:02:51]} Re4 {[%emt 0:02:24]} 20. Bd3 {[%emt 0:02:57]} Ra4 {[%emt 0:04:00]} 21. b3 {[%emt 0:01:42]} Qa5 {[%emt 0:00:24]} 22. b4 {[%emt 0:03:04]} Qc7 {[%emt 0:01:21]} 23. fxe5 {[%emt 0:04:21]} Qxe5 {[%emt 0:01:08]} 24. Kc2 {[%emt 0:01:39]} Ba6 {[%emt 0:01:39]} 25. Bxa6 {[%emt 0:05:27]} Rxa6 {[%emt 0:00:07]} 26. Qxh7 {[%emt 0:00:16]} c5 {[%emt 0:18:57]} 27. bxc5 {[%emt 0:05:37]} Bxc5 {[%emt 0:00:51]} 28. Bd2 {[%emt 0:01:36]} Qe4+ {[%emt 0:05:58]} 29. Qxe4 {[%emt 0:00:08]} dxe4 {[%emt 0:00:02]} 30. Rf5 {[%emt 0:01:18]} Re5 {[%emt 0:00:27]} 31. Rxe5 {[%emt 0:02:38]} fxe5 {[%emt 0:00:07]} 32. a4 {[%emt 0:04:44]} Rg6 {[%emt 0:01:31]} 33. g3 {[%emt 0:00:42]} e3 {[%emt 0:00:45]} 34. Be1 {[%emt 0:00:23]} Ke7 {[%emt 0:00:53]} 35. Rb1 {[%emt 0:05:03]} Rg4 {[%emt 0:02:34]} 36. Rb7+ {[%emt 0:03:05]} Ke6 {[%emt 0:00:24]} 37. Kb3 {[%emt 0:01:17]} Kd5 {[%emt 0:01:44]} 38. h4 {[%emt 0:02:25]} Ke4 {[%emt 0:09:39]} 39. h5 {[%emt 0:00:42]} Kd3 {[%emt 0:00:00]} 40. h6 {[%emt 0:00:13]} Rg8 {[%emt 0:00:00]} 41. h7 {[%emt 0:00:25]} Rh8 {[%emt 0:00:00]} 42. g4 {[%emt 0:00:34]} Ke2 {[%emt 0:00:00]} 43. Bh4 {[%emt 0:02:06]} Kf3 {[%emt 0:00:00]} 44. g5 {[%emt 0:02:09]} Kg4 {[%emt 0:00:00]} 45. g6 {[%emt 0:06:02]} Kxh4 {[%emt 0:00:00]} 46. Kc2 {[%emt 0:01:19]} Bf8 {[%emt 0:00:48]} 47. Rf7 {[%emt 0:00:51]} Bh6 {[%emt 0:02:20]} 48. g7 {[%emt 0:00:58]} Bxg7 {[%emt 0:00:05]} 49. Rxg7 {[%emt 0:00:07]} e4 {[%emt 0:01:00]} 50. Kd1 {[%emt 0:00:35]} Kh5 {[%emt 0:00:58]} 51. Ke2 {[%emt 0:00:43]} a5 {[%emt 0:00:26]} 52. Kxe3 {[%emt 0:00:34]} Kh6 {[%emt 0:00:04]} 53. Rg1 {[%emt 0:01:13]} 1-0

[Event "1000GM NY Winter IM-C 2024"]
[Site "New York"]
[Date "2024.01.15"]
[Round "7.5"]
[White "Mede, Istvan"]
[Black "Tanenbaum, Zachary"]
[Result "1/2-1/2"]
[ECO "C47"]
[WhiteElo "2187"]
[BlackElo "2272"]
[Annotator "RC"]
[PlyCount "141"]
[EventDate "2024.01.10"]
[EventType "swiss"]
[EventCountry "USA"]
[SourceTitle "playchess.com"]
[Source "ChessBase"]
[SourceQuality "1"]
[TimeControl "5400+30"]

1. e4 {[%emt 0:00:02]} e5 {[%emt 0:09:39]} 2. Nf3 {[%emt 0:00:09]} Nc6 {[%emt 0:00:06]} 3. Nc3 {[%emt 0:00:04]} Nf6 {[%emt 0:00:04]} 4. d4 {[%emt 0:00:03]} exd4 {[%emt 0:00:05]} 5. Nxd4 {[%emt 0:00:03]} Nxe4 {[%emt 0:00:47]} 6. Nxc6 {[%emt 0:11:13]} Nxc3 {[%emt 0:00:06]} 7. Nxd8 {[%emt 0:01:58]} Nxd1 {[%emt 0:00:03]} 8. Nxf7 {[%emt 0:00:26]} Kxf7 {[%emt 0:00:02]} 9. Bc4+ {[%emt 0:05:56]} Kf6 {[%emt 0:00:02]} 10. Kxd1 {[%emt 0:06:06]} c6 {[%emt 0:00:07]} 11. Re1 {[%emt 0:06:43]} d5 {[%emt 0:00:42]} 12. Bd3 {[%emt 0:00:40]} Bd6 {[%emt 0:04:20]} 13. h3 {[%emt 0:00:51]} Bf5 {[%emt 0:04:55]} 14. Bxf5 {[%emt 0:09:13]} Kxf5 {[%emt 0:00:02]} 15. Re3 {[%emt 0:00:50]} Rhe8 {[%emt 0:12:55]} 16. Rf3+ {[%emt 0:00:52]} Kg6 {[%emt 0:00:37]} 17. Bf4 {[%emt 0:01:21]} Bxf4 {[%emt 0:07:33]} 18. Rxf4 {[%emt 0:00:10]} Re5 {[%emt 0:01:43]} 19. Kd2 {[%emt 0:01:36]} Rae8 {[%emt 0:00:19]} 20. Rf1 {[%emt 0:00:24]} R8e7 {[%emt 0:04:16]} 21. a4 {[%emt 0:03:31]} c5 {[%emt 0:13:09]} 22. b3 {[%emt 0:02:22]} h5 {[%emt 0:01:38]} 23. g3 {[%emt 0:00:35]} b6 {[%emt 0:00:47]} 24. h4 {[%emt 0:02:18]} d4 {[%emt 0:04:23]} 25. Kd3 {[%emt 0:01:16]} Rf5 {[%emt 0:03:42]} 26. Rxf5 {[%emt 0:09:03]} Kxf5 {[%emt 0:00:01]} 27. f3 {[%emt 0:00:06]} Re3+ {[%emt 0:02:53]} 28. Kd2 {[%emt 0:02:05]} g6 {[%emt 0:00:42]} 29. Rf2 {[%emt 0:00:20]} Rc3 {[%emt 0:08:24]} 30. Rf1 {[%emt 0:07:21]} c4 {[%emt 0:04:40]} 31. bxc4 {[%emt 0:00:25]} Rxc4 {[%emt 0:00:31]} 32. a5 {[%emt 0:00:25]} bxa5 {[%emt 0:01:06]} 33. Ra1 {[%emt 0:00:34]} a4 {[%emt 0:00:48]} 34. Ra3 {[%emt 0:02:55]} Ke5 {[%emt 0:03:04]} 35. Kd3 {[%emt 0:08:29]} Kd5 {[%emt 0:04:27]} 36. g4 {[%emt 0:00:57]} Kc5 {[%emt 0:04:05]} 37. gxh5 {[%emt 0:00:27]} gxh5 {[%emt 0:00:03]} 38. f4 {[%emt 0:00:06]} Kb5 {[%emt 0:00:46]} 39. Ra1 {[%emt 0:03:48]} Rc3+ {[%emt 0:01:09]} 40. Kxd4 {[%emt 0:01:55]} Rxc2 {[%emt 0:00:40]} 41. Rb1+ {[%emt 0:00:10]} Ka5 {[%emt 0:00:17]} 42. Rf1 {[%emt 0:04:08]} a3 {[%emt 0:01:28]} 43. f5 {[%emt 0:00:06]} a2 {[%emt 0:02:55]} 44. f6 {[%emt 0:00:13]} Rf2 {[%emt 0:01:02]} 45. Ra1 {[%emt 0:00:19]} Kb4 {[%emt 0:00:45]} 46. Ke3 {[%emt 0:00:07]} Rxf6 {[%emt 0:00:15]} 47. Rxa2 {[%emt 0:00:03]} a5 {[%emt 0:00:19]} 48. Rb2+ {[%emt 0:00:23]} Kc3 {[%emt 0:00:57]} 49. Rb5 {[%emt 0:02:32]} a4 {[%emt 0:00:28]} 50. Rxh5 {[%emt 0:00:32]} Ra6 {[%emt 0:00:34]} 51. Rc5+ {[%emt 0:00:42]} Kb2 {[%emt 0:00:51]} 52. Rb5+ {[%emt 0:00:06]} Kc3 {[%emt 0:00:23]} 53. Rc5+ {[%emt 0:00:03]} Kb3 {[%emt 0:00:41]} 54. Rb5+ {[%emt 0:01:21]} Kc2 {[%emt 0:00:10]} 55. Rc5+ {[%emt 0:00:07]} Kb3 {[%emt 0:00:12]} 56. Rb5+ {[%emt 0:00:05]} Kc4 {[%emt 0:00:18]} 57. Rb1 {[%emt 0:03:58]} Rf6 {[%emt 0:00:12]} 58. Rc1+ {[%emt 0:03:30]} Kb3 {[%emt 0:00:11]} 59. Rb1+ {[%emt 0:00:04]} Kc2 {[%emt 0:00:24]} 60. Ra1 {[%emt 0:00:03]} Kb3 {[%emt 0:00:45]} 61. Rb1+ {[%emt 0:00:04]} Kc3 {[%emt 0:01:47]} 62. Ra1 {[%emt 0:00:08]} Kb4 {[%emt 0:00:07]} 63. Rb1+ {[%emt 0:00:28]} Ka5 {[%emt 0:00:10]} 64. Kd3 {[%emt 0:02:26]} a3 {[%emt 0:00:29]} 65. Kc3 {[%emt 0:00:37]} Rf3+ {[%emt 0:01:14]} 66. Kc2 {[%emt 0:00:52]} Rh3 {[%emt 0:00:36]} 67. Rc1 {[%emt 0:01:13]} Kb4 {[%emt 0:00:29]} 68. Kb1 {[%emt 0:00:17]} Kb3 {[%emt 0:00:21]} 69. Ka1 {[%emt 0:00:07]} Rxh4 {[%emt 0:00:24]} 70. Rb1+ {[%emt 0:00:10]} Ka4 {[%emt 0:00:27]} 71. Rb8 {[%emt 0:00:12]} 1/2-1/2

[Event "1000GM NY Winter IM-C 2024"]
[Site "New York"]
[Date "2024.01.15"]
[Round "7.6"]
[White "Bonin, Jay"]
[Black "Pagan, Jonathan"]
[Result "1/2-1/2"]
[ECO "D39"]
[WhiteElo "2166"]
[BlackElo "2018"]
[Annotator "RC"]
[PlyCount "66"]
[EventDate "2024.01.10"]
[EventType "swiss"]
[EventCountry "USA"]
[SourceTitle "playchess.com"]
[Source "ChessBase"]
[SourceQuality "1"]
[TimeControl "5400+30"]

1. d4 {[%emt 0:03:38]} Nf6 {[%emt 0:00:05]} 2. Nf3 {[%emt 0:00:03]} d5 {[%emt 0:00:06]} 3. c4 {[%emt 0:00:14]} e6 {[%emt 1:31:49]} 4. Nc3 {[%emt 0:00:20]} Bb4 {[%emt 0:00:00]} 5. Bg5 {[%emt 0:00:28]} dxc4 {[%emt 0:00:00]} 6. e4 {[%emt 0:02:30]} h6 {[%emt 0:00:00]} 7. Bxf6 {[%emt 0:01:17]} Qxf6 {[%emt 0:00:00]} 8. Qa4+ {[%emt 0:00:55]} Nc6 {[%emt 0:00:00]} 9. Bxc4 {[%emt 0:05:34]} Bd7 {[%emt 0:00:00]} 10. Qb3 {[%emt 0:11:05]} O-O {[%emt 0:00:00]} 11. O-O {[%emt 0:00:53]} Qe7 {[%emt 0:00:00]} 12. Qc2 {[%emt 0:04:04]} Ba5 {[%emt 0:00:00]} 13. a3 {[%emt 0:01:24]} Bb6 {[%emt 0:00:00]} 14. Rad1 {[%emt 0:00:13]} a6 {[%emt 0:00:00]} 15. Ba2 {[%emt 0:03:36]} Na7 {[%emt 0:00:00]} 16. Bb1 {[%emt 0:04:34]} g6 {[%emt 0:00:00]} 17. Rfe1 {[%emt 0:06:49]} c5 {[%emt 0:00:00]} 18. d5 {[%emt 0:06:59]} Ba5 {[%emt 0:00:00]} 19. Re3 {[%emt 0:07:05]} Bxc3 {[%emt 0:00:00]} 20. Rxc3 {[%emt 0:00:58]} exd5 {[%emt 0:00:00]} 21. Rxd5 {[%emt 0:00:51]} b6 {[%emt 0:00:00]} 22. Qd2 {[%emt 0:02:00]} Be6 {[%emt 0:00:00]} 23. Rdd3 {[%emt 0:01:26]} Kg7 {[%emt 0:00:00]} 24. h3 {[%emt 0:35:34]} Rad8 {[%emt 0:00:00]} 25. Rxd8 {[%emt 0:00:00]} Rxd8 {[%emt 0:00:00]} 26. Rd3 {[%emt 0:00:00]} Nc6 {[%emt 0:00:00]} 27. Qc3+ {[%emt 0:00:00]} Qf6 {[%emt 0:00:00]} 28. Qxf6+ {[%emt 0:00:00]} Kxf6 {[%emt 0:00:00]} 29. Rxd8 {[%emt 0:00:00]} Nxd8 {[%emt 0:00:00]} 30. Kf1 {[%emt 0:00:00]} Nc6 {[%emt 0:00:00]} 31. Ke2 {[%emt 0:00:00]} Ne5 {[%emt 0:00:00]} 32. Nxe5 {[%emt 0:00:00]} Kxe5 {[%emt 0:00:00]} 33. Ke3 {[%emt 0:04:30]} g5 {[%emt 0:00:00]} 1/2-1/2

[Event "1000GM NY Winter IM-C 2024"]
[Site "New York"]
[Date "2024.01.15"]
[Round "7.7"]
[White "Gaw, Chloe"]
[Black "Yudasin, Leonid"]
[Result "1/2-1/2"]
[ECO "D35"]
[WhiteElo "1928"]
[BlackElo "2353"]
[Annotator "RC"]
[PlyCount "46"]
[EventDate "2024.01.10"]
[EventType "swiss"]
[EventCountry "USA"]
[SourceTitle "playchess.com"]
[Source "ChessBase"]
[SourceQuality "1"]
[TimeControl "5400+30"]

1. d4 {[%emt 0:00:03]} Nf6 {[%emt 0:00:07]} 2. c4 {[%emt 0:00:07]} e6 {[%emt 0:00:05]} 3. Nc3 {[%emt 0:00:11]} d5 {[%emt 0:00:09]} 4. cxd5 {[%emt 0:00:07]} exd5 {[%emt 0:00:03]} 5. Bg5 {[%emt 0:00:08]} c6 {[%emt 0:03:03]} 6. e3 {[%emt 0:00:06]} Bf5 {[%emt 0:03:55]} 7. Qf3 {[%emt 0:00:33]} Bg6 {[%emt 0:01:29]} 8. Bxf6 {[%emt 0:00:10]} Qxf6 {[%emt 0:00:02]} 9. Qxf6 {[%emt 0:00:12]} gxf6 {[%emt 0:00:03]} 10. Nf3 {[%emt 0:00:50]} Nd7 {[%emt 0:01:47]} 11. h4 {[%emt 0:06:58]} Nb6 {[%emt 0:05:20]} 12. Nd2 {[%emt 0:11:04]} Be7 {[%emt 0:03:33]} 13. Be2 {[%emt 0:02:21]} Rg8 {[%emt 0:01:16]} 14. g3 {[%emt 0:03:23]} Bf5 {[%emt 0:03:07]} 15. Rc1 {[%emt 0:05:10]} Nc8 {[%emt 0:04:05]} 16. Bd1 {[%emt 0:03:12]} h6 {[%emt 0:02:40]} 17. Bc2 {[%emt 0:00:43]} Be6 {[%emt 0:01:02]} 18. Ne2 {[%emt 0:05:21]} Bb4 {[%emt 0:05:04]} 19. Bd3 {[%emt 0:09:28]} Nd6 {[%emt 0:00:32]} 20. Nf4 {[%emt 0:03:06]} Bf5 {[%emt 0:05:09]} 21. Bxf5 {[%emt 0:06:25]} Nxf5 {[%emt 0:00:04]} 22. Ke2 {[%emt 0:00:50]} Bxd2 {[%emt 0:00:03]} 23. Kxd2 {[%emt 0:00:07]} a5 {[%emt 0:59:22]} 1/2-1/2

[Event "1000GM NY Winter IM-C 2024"]
[Site "New York"]
[Date "2024.01.15"]
[Round "7.8"]
[White "Mou, Iris"]
[Black "Hajnal, Zoltan"]
[Result "1-0"]
[ECO "C50"]
[WhiteElo "2128"]
[BlackElo "2383"]
[Annotator "RC"]
[PlyCount "161"]
[EventDate "2024.01.10"]
[EventType "swiss"]
[EventCountry "USA"]
[SourceTitle "playchess.com"]
[Source "ChessBase"]
[SourceQuality "1"]
[TimeControl "5400+30"]

1. e4 {[%emt 0:00:03]} e5 {[%emt 0:00:04]} 2. Nf3 {[%emt 0:00:09]} Nc6 {[%emt 0:00:05]} 3. Bc4 {[%emt 0:00:07]} Bc5 {[%emt 0:00:05]} 4. d3 {[%emt 0:00:12]} Nf6 {[%emt 0:00:07]} 5. Nc3 {[%emt 0:00:13]} h6 {[%emt 0:00:13]} 6. O-O {[%emt 0:00:31]} d6 {[%emt 0:00:45]} 7. Na4 {[%emt 0:00:25]} Bb6 {[%emt 0:00:21]} 8. a3 {[%emt 0:00:21]} O-O {[%emt 0:01:58]} 9. h3 {[%emt 0:00:09]} Be6 {[%emt 0:00:32]} 10. Bxe6 {[%emt 0:00:55]} fxe6 {[%emt 0:00:05]} 11. c3 {[%emt 1:32:55]} Qe8 {[%emt 0:04:58]} 12. b4 {[%emt 0:00:00]} Nh5 {[%emt 0:02:49]} 13. Ra2 {[%emt 0:01:00]} Nf4 {[%emt 0:02:52]} 14. Bxf4 {[%emt 0:00:00]} Rxf4 {[%emt 0:00:05]} 15. Nxb6 {[%emt 0:00:00]} axb6 {[%emt 0:01:22]} 16. Nh2 {[%emt 0:01:30]} Qg6 {[%emt 1:22:09]} 17. a4 {[%emt 0:00:00]} Rff8 {[%emt 0:00:00]} 18. Qe2 {[%emt 0:00:00]} Qf7 {[%emt 0:00:00]} 19. g3 {[%emt 0:00:00]} Ne7 {[%emt 0:00:00]} 20. Qe3 {[%emt 0:00:00]} Ng6 {[%emt 0:00:00]} 21. h4 {[%emt 0:00:00]} Kh7 {[%emt 0:00:00]} 22. Kg2 {[%emt 0:00:00]} Ra7 {[%emt 0:00:00]} 23. Rfa1 {[%emt 0:00:00]} Rfa8 {[%emt 0:00:00]} 24. c4 {[%emt 0:00:00]} Qe8 {[%emt 0:00:00]} 25. Qf3 {[%emt 0:00:00]} Kg8 {[%emt 0:00:00]} 26. Qd1 {[%emt 0:00:00]} Ne7 {[%emt 0:00:00]} 27. b5 {[%emt 0:00:00]} Ng6 {[%emt 0:00:00]} 28. Qe1 {[%emt 0:00:00]} Nf8 {[%emt 0:00:00]} 29. a5 {[%emt 0:00:00]} Nd7 {[%emt 0:00:00]} 30. Qd2 {[%emt 0:00:00]} Nc5 {[%emt 0:00:00]} 31. axb6 {[%emt 0:00:00]} Rxa2 {[%emt 0:00:00]} 32. Rxa2 {[%emt 0:00:00]} cxb6 {[%emt 0:00:00]} 33. Rxa8 {[%emt 0:00:00]} Qxa8 {[%emt 0:00:00]} 34. d4 {[%emt 0:00:00]} exd4 {[%emt 0:00:00]} 35. Qxd4 {[%emt 0:00:00]} Qb8 {[%emt 0:00:00]} 36. Nf3 {[%emt 0:00:00]} Qc7 {[%emt 0:00:00]} 37. e5 {[%emt 0:00:00]} dxe5 {[%emt 0:00:00]} 38. Nxe5 {[%emt 0:00:00]} Nb3 {[%emt 0:00:00]} 39. Qe4 {[%emt 0:00:00]} Nd2 {[%emt 0:01:10]} 40. Qf4 {[%emt 0:00:00]} Kh7 {[%emt 0:01:54]} 41. g4 {[%emt 0:00:09]} Kg8 {[%emt 0:02:27]} 42. Qd4 {[%emt 0:05:31]} Nb3 {[%emt 0:02:17]} 43. Qe3 {[%emt 0:02:11]} Nd2 {[%emt 0:01:54]} 44. f4 {[%emt 0:01:26]} Qd6 {[%emt 0:00:13]} 45. Kf2 {[%emt 0:01:48]} Nb1 {[%emt 0:00:23]} 46. Nd3 {[%emt 0:01:38]} Na3 {[%emt 0:02:22]} 47. Qe4 {[%emt 0:00:43]} Nc2 {[%emt 0:00:35]} 48. h5 {[%emt 0:00:55]} Qd4+ {[%emt 0:01:00]} 49. Qxd4 {[%emt 0:01:05]} Nxd4 {[%emt 0:00:04]} 50. Ne5 {[%emt 0:00:29]} Nb3 {[%emt 0:00:50]} 51. Nd7 {[%emt 0:00:17]} Kf7 {[%emt 0:00:38]} 52. Nxb6 {[%emt 0:00:21]} Nc5 {[%emt 0:01:27]} 53. Ke3 {[%emt 0:01:11]} Ke7 {[%emt 0:00:04]} 54. Kd4 {[%emt 0:00:09]} Nb3+ {[%emt 0:00:05]} 55. Ke5 {[%emt 0:00:12]} Nc5 {[%emt 0:00:00]} 56. f5 {[%emt 0:00:44]} Nd3+ {[%emt 0:00:03]} 57. Ke4 {[%emt 0:00:40]} Nf2+ {[%emt 0:00:15]} 58. Kf3 {[%emt 0:00:32]} Nd3 {[%emt 0:00:06]} 59. Ke3 {[%emt 0:00:37]} Ne5 {[%emt 0:00:09]} 60. Kf4 {[%emt 0:00:41]} Nd3+ {[%emt 0:00:04]} 61. Ke3 {[%emt 0:00:06]} Ne5 {[%emt 0:00:04]} 62. fxe6 {[%emt 0:00:55]} Kxe6 {[%emt 0:00:34]} 63. Kf4 {[%emt 0:00:32]} Nd3+ {[%emt 0:00:07]} 64. Ke4 {[%emt 0:00:24]} Ne5 {[%emt 0:00:08]} 65. Kf4 {[%emt 0:00:33]} Nd3+ {[%emt 0:00:04]} 66. Ke4 {[%emt 0:00:04]} Ne5 {[%emt 0:00:05]} 67. Na4 {[%emt 0:00:26]} Nxg4 {[%emt 0:03:51]} 68. Nc5+ {[%emt 0:00:06]} Kd6 {[%emt 0:00:03]} 69. Nxb7+ {[%emt 0:00:06]} Kc7 {[%emt 0:00:04]} 70. Nc5 {[%emt 0:00:43]} Nf6+ {[%emt 0:00:45]} 71. Ke5 {[%emt 0:00:52]} Nxh5 {[%emt 0:00:14]} 72. Ne4 {[%emt 0:00:54]} g5 {[%emt 0:01:45]} 73. c5 {[%emt 0:00:43]} Nf4 {[%emt 0:02:02]} 74. Nf6 {[%emt 0:00:41]} Nd3+ {[%emt 0:00:22]} 75. Kd4 {[%emt 0:00:20]} Nf4 {[%emt 0:00:07]} 76. c6 {[%emt 0:00:24]} h5 {[%emt 0:01:10]} 77. Ne8+ {[%emt 0:00:36]} Kb6 {[%emt 0:00:14]} 78. Ke5 {[%emt 0:00:25]} Nd3+ {[%emt 0:00:43]} 79. Kd6 {[%emt 0:00:38]} Nb4 {[%emt 0:00:31]} 80. c7 {[%emt 0:00:28]} Kb7 {[%emt 0:00:04]} 81. Kd7 {[%emt 0:00:15]} 1-0

[Event "1000GM NY Winter IM-C 2024"]
[Site "New York"]
[Date "2024.01.15"]
[Round "7.9"]
[White "Venkatesh, Narayan"]
[Black "Pressman, Leif"]
[Result "0-1"]
[ECO "D35"]
[WhiteElo "1965"]
[BlackElo "2258"]
[Annotator "RC"]
[PlyCount "158"]
[EventDate "2024.01.10"]
[EventType "swiss"]
[EventCountry "USA"]
[SourceTitle "playchess.com"]
[Source "ChessBase"]
[SourceQuality "1"]
[TimeControl "5400+30"]

1. d4 {[%emt 0:02:42]} d5 {[%emt 0:01:05]} 2. c4 {[%emt 0:00:09]} e6 {[%emt 0:00:11]} 3. Nc3 {[%emt 0:00:07]} c6 {[%emt 0:00:29]} 4. cxd5 {[%emt 0:01:09]} exd5 {[%emt 0:01:00]} 5. Bf4 {[%emt 0:01:11]} Bd6 {[%emt 0:00:55]} 6. Bxd6 {[%emt 0:00:39]} Qxd6 {[%emt 0:00:03]} 7. e3 {[%emt 0:00:12]} Bf5 {[%emt 0:02:21]} 8. Bd3 {[%emt 0:05:35]} Bxd3 {[%emt 0:12:38]} 9. Qxd3 {[%emt 0:01:43]} Nf6 {[%emt 0:00:33]} 10. Nf3 {[%emt 0:13:08]} Nbd7 {[%emt 0:00:50]} 11. O-O {[%emt 0:00:15]} O-O {[%emt 0:00:14]} 12. Rac1 {[%emt 0:07:31]} a5 {[%emt 0:01:21]} 13. Qc2 {[%emt 0:10:49]} Rfe8 {[%emt 0:01:25]} 14. a3 {[%emt 0:03:41]} Ne4 {[%emt 0:04:57]} 15. Nxe4 {[%emt 0:04:14]} dxe4 {[%emt 0:00:47]} 16. Nd2 {[%emt 0:00:55]} Qd5 {[%emt 0:05:05]} 17. Qb3 {[%emt 0:02:10]} Qxb3 {[%emt 0:01:32]} 18. Nxb3 {[%emt 0:00:12]} Nf6 {[%emt 0:03:33]} 19. Nc5 {[%emt 0:03:53]} Re7 {[%emt 0:02:57]} 20. Na4 {[%emt 0:02:18]} Nd5 {[%emt 0:04:54]} 21. Rc5 {[%emt 0:01:43]} Kf8 {[%emt 0:04:22]} 22. b3 {[%emt 0:05:42]} Re6 {[%emt 0:06:19]} 23. Rc2 {[%emt 0:08:27]} f5 {[%emt 0:02:59]} 24. Nc3 {[%emt 0:01:01]} Rd6 {[%emt 0:04:16]} 25. Nxd5 {[%emt 0:01:09]} Rxd5 {[%emt 0:00:20]} 26. Rc3 {[%emt 0:05:11]} Ke7 {[%emt 0:00:45]} 27. Rfc1 {[%emt 0:01:48]} Kd6 {[%emt 0:02:37]} 28. Rc5 {[%emt 0:00:32]} g6 {[%emt 0:01:55]} 29. Rxd5+ {[%emt 0:16:54]} cxd5 {[%emt 0:00:59]} 30. Kf1 {[%emt 0:00:00]} g5 {[%emt 0:04:55]} 31. Ke2 {[%emt 0:00:00]} Rf8 {[%emt 0:01:39]} 32. Rc3 {[%emt 0:00:00]} h5 {[%emt 0:02:02]} 33. a4 {[%emt 0:00:00]} h4 {[%emt 0:02:38]} 34. g3 {[%emt 0:00:00]} Rh8 {[%emt 0:03:53]} 35. Rc1 {[%emt 0:00:00]} b6 {[%emt 0:01:14]} 36. Rc3 {[%emt 0:00:00]} hxg3 {[%emt 0:00:43]} 37. hxg3 {[%emt 0:00:04]} Rh1 {[%emt 0:00:10]} 38. Kd2 {[%emt 0:00:38]} Rb1 {[%emt 0:01:33]} 39. Ke2 {[%emt 0:00:17]} Rh1 {[%emt 0:01:17]} 40. Kd2 {[%emt 0:00:05]} Rh3 {[%emt 0:00:39]} 41. Rc8 {[%emt 0:01:19]} f4 {[%emt 0:00:31]} 42. gxf4 {[%emt 0:00:05]} gxf4 {[%emt 0:00:03]} 43. Rd8+ {[%emt 0:01:36]} Kc6 {[%emt 0:00:29]} 44. Rc8+ {[%emt 0:00:58]} Kd7 {[%emt 0:00:14]} 45. Rc3 {[%emt 0:01:39]} Rh2 {[%emt 0:00:58]} 46. Ke1 {[%emt 0:00:34]} Rh1+ {[%emt 0:00:38]} 47. Kd2 {[%emt 0:00:23]} Rh2 {[%emt 0:00:47]} 48. Ke1 {[%emt 0:00:24]} f3 {[%emt 0:01:31]} 49. Rc1 {[%emt 0:01:17]} Kd6 {[%emt 0:01:20]} 50. Rc2 {[%emt 0:00:29]} Ke6 {[%emt 0:03:04]} 51. Rc6+ {[%emt 0:00:24]} Ke7 {[%emt 0:00:42]} 52. Rxb6 {[%emt 0:00:17]} Rh1+ {[%emt 0:00:06]} 53. Kd2 {[%emt 0:00:09]} Rf1 {[%emt 0:00:02]} 54. Rb5 {[%emt 0:01:10]} Rxf2+ {[%emt 0:00:15]} 55. Kd1 {[%emt 0:00:34]} Rh2 {[%emt 0:01:12]} 56. Ke1 {[%emt 0:00:14]} Re2+ {[%emt 0:00:22]} 57. Kf1 {[%emt 0:00:01]} Kd6 {[%emt 0:00:34]} 58. Rb6+ {[%emt 0:00:42]} Kc7 {[%emt 0:00:15]} 59. Rb5 {[%emt 0:00:03]} Kd6 {[%emt 0:04:00]} 60. Rxa5 {[%emt 0:00:48]} Rxe3 {[%emt 0:00:08]} 61. Ra6+ {[%emt 0:00:39]} Kd7 {[%emt 0:00:53]} 62. Rf6 {[%emt 0:00:46]} Rxb3 {[%emt 0:00:51]} 63. a5 {[%emt 0:00:08]} Ra3 {[%emt 0:02:21]} 64. a6 {[%emt 0:00:45]} Ke7 {[%emt 0:00:12]} 65. Rf5 {[%emt 0:00:46]} Ke6 {[%emt 0:00:50]} 66. Re5+ {[%emt 0:00:22]} Kd6 {[%emt 0:00:20]} 67. Rf5 {[%emt 0:00:22]} Ra4 {[%emt 0:01:09]} 68. Kf2 {[%emt 0:00:58]} Rxd4 {[%emt 0:01:23]} 69. Rf7 {[%emt 0:00:33]} Ra4 {[%emt 0:01:01]} 70. Ke3 {[%emt 0:00:02]} Ra3+ {[%emt 0:00:30]} 71. Kf2 {[%emt 0:00:15]} Kc5 {[%emt 0:01:31]} 72. a7 {[%emt 0:00:16]} Ra2+ {[%emt 0:00:57]} 73. Kf1 {[%emt 0:00:05]} Kd4 {[%emt 0:00:23]} 74. Kg1 {[%emt 0:00:21]} Ke3 {[%emt 0:00:24]} 75. Kh1 {[%emt 0:00:28]} d4 {[%emt 0:00:22]} 76. Rb7 {[%emt 0:00:17]} d3 {[%emt 0:00:21]} 77. Rb1 {[%emt 0:00:16]} Rxa7 {[%emt 0:00:17]} 78. Rb2 {[%emt 0:01:08]} d2 {[%emt 0:00:27]} 79. Rb1 {[%emt 0:00:19]} Kf2 {[%emt 0:00:27]} 0-1